lending/lending_fUSD_20240621
["ID","MTS","AMOUNT","RATE_DAILY","PERIOD"]
[330058312,1718973405981,-4500.0,0.00043589,60]
[330058313,1718973406006,-150.0,0.00043613,30]
[330058314,1718973406032,-323.17599016,0.0004363,30]
[330058315,1718973406057,-176.06219812,0.0004363,30]
[330058316,1718973406083,-229.83105618,0.0004363,30]
[330058317,1718973406109,-150.0,0.00043641,30]
[330058318,1718973406135,-150.0,0.00043641,30]
[330058319,1718973406160,-150.0,0.00043671,30]
[330058320,1718973406187,-323.17599016,0.00043677,30]
[330058321,1718973406212,-176.06219812,0.00043677,30]
[330058322,1718973406237,-229.83105618,0.00043677,30]
[330058323,1718973406261,-1176.36675554,0.000437,120]
[330058324,1718973406285,-150.0,0.000437,30]
[330058325,1718973406310,-150.0,0.000437,30]
[330058326,1718973406335,-150.0,0.000437,30]
[330058327,1718973406360,-150.0,0.000437,30]
[330058328,1718973406384,-150.0,0.000437,30]
[330058329,1718973406409,-323.17599016,0.00043723,30]
[330058330,1718973406432,-176.06219812,0.00043723,30]
[330058331,1718973406455,-229.83105618,0.00043723,30]
[330058332,1718973406483,-150.0,0.00043729,30]
[330058333,1718973406507,-1000.0,0.00043734,30]
[330058334,1718973406752,-150.0,0.00043759,30]
[330058335,1718973406776,-150.0,0.00043759,30]
[330058336,1718973406799,-323.17599016,0.0004377,30]
[330058337,1718973406823,-176.06219812,0.0004377,30]
[330058338,1718973406847,-229.83105618,0.0004377,30]
[330058339,1718973406870,-2000.0,0.00043781,30]
[330058340,1718973406894,-150.0,0.00043787,30]
[330058341,1718973406917,-464.60819521,0.000438,30]
[330058342,1718973406944,-305.46525588,0.000438,120]
[330058343,1718973406968,-470.11473502,0.000438,120]
[330058344,1718973406992,-323.17599016,0.00043816,30]
[330058345,1718973407017,-176.06219812,0.00043816,30]
[330058346,1718973407042,-229.83105618,0.00043816,30]
[330058347,1718973407065,-150.0,0.00043821,30]
[330058348,1718973407088,-1100.49433417,0.00043835,30]
[330058349,1718973407114,-607.1,0.00043835,120]
[330058350,1718973407138,-784.29,0.00043835,120]
[330058351,1718973407162,-8535.5,0.00043835,120]
[330058352,1718973407187,-502.93,0.00043835,120]
[330058353,1718973407214,-502.93,0.00043835,120]
[330058354,1718973407238,-502.93,0.00043835,120]
[330058355,1718973407260,-502.93,0.00043835,120]
[330058356,1718973407283,-502.93,0.00043835,120]
[330058357,1718973407307,-502.93,0.00043835,120]
[330058358,1718973407331,-502.93,0.00043835,120]
[330058359,1718973407355,-502.93,0.00043835,120]
[330058360,1718973407382,-502.93,0.00043835,120]
[330058361,1718973407405,-502.93,0.00043835,120]
[330058362,1718973407430,-502.93,0.00043835,120]
[330058363,1718973407455,-502.93,0.00043835,120]
[330058364,1718973407481,-502.93,0.00043835,120]
[330058365,1718973407505,-502.93,0.00043835,120]
[330058366,1718973407529,-502.93,0.00043835,120]
[330058367,1718973407555,-502.93,0.00043835,120]
[330058368,1718973407579,-502.93,0.00043835,120]
[330058369,1718973407603,-502.93,0.00043835,120]
[330058370,1718973407627,-502.93,0.00043835,120]
[330058371,1718973407652,-502.93,0.00043835,120]
[330058372,1718973407677,-502.93,0.00043835,120]
[330058373,1718973407700,-502.93,0.00043835,120]
[330058374,1718973407724,-502.93,0.00043835,120]
[330058375,1718973407747,-503.07798223,0.00043835,120]
[330058376,1718973407771,-500.0,0.00043835,120]
[330058377,1718973407796,-1487.44,0.00043836,60]
[330058378,1718973407820,-150.0,0.00043846,30]
[330058379,1718973407843,-323.17599016,0.00043863,30]
[330058380,1718973407866,-176.06219812,0.00043863,30]
[330058381,1718973407890,-229.83105618,0.00043863,30]
[330058382,1718973407914,-150.0,0.00043877,30]
[330058383,1718973407939,-150.0,0.00043877,30]
[330058384,1718973407962,-150.0,0.00043877,30]
[330058385,1718973407985,-1043.89826726,0.000439,111]
[330058386,1718973408008,-150.0,0.00043904,30]
[330058387,1718973408032,-323.17599016,0.00043909,30]
[330058388,1718973408055,-176.06219812,0.00043909,30]
[330058389,1718973408079,-229.83105618,0.00043909,30]
[330058390,1718973408103,-1000.0,0.00043937,30]
[330058391,1718973408126,-150.0,0.00043942,30]
[330058392,1718973408151,-3141.6,0.00043951,99]
[330058393,1718973408175,-323.17599016,0.00043956,30]
[330058394,1718973408201,-176.06219812,0.00043956,30]
[330058395,1718973408225,-229.83105618,0.00043956,30]
[330058396,1718973408249,-150.0,0.00043962,30]
[330058397,1718973408275,-150.0,0.0004397,120]
[330058398,1718973408298,-150.0,0.00043995,30]
[330058399,1718973408321,-150.0,0.00043995,30]
[330058400,1718973408348,-50000.0,0.00044,34]
[330058401,1718973408371,-210.95034472,0.00044,120]
[330058402,1718973408394,-2000.0,0.00044,120]
[330058403,1718973408417,-500.0,0.00044,30]
[330058404,1718973408443,-221.93841657,0.00044,60]
[330058405,1718973408468,-1000.0,0.00044,120]
[330058406,1718973408496,-450.0,0.00044,120]
[330058407,1718973408520,-500000.0,0.00044,50]
[330058408,1718973408544,-679.117975,0.00044,57]
[330058409,1718973408570,-323.17599016,0.00044002,30]
[330058410,1718973408593,-176.06219812,0.00044002,30]
[330058411,1718973408620,-229.83105618,0.00044002,30]
[330058412,1718973408644,-150.0,0.0004402,30]
[330058413,1718973408666,-150.0,0.00044029,30]
[330058414,1718973408691,-323.17599016,0.00044048,30]
[330058415,1718973408714,-176.06219812,0.00044048,30]
[330058416,1718973408737,-229.83105618,0.00044048,30]
[330058417,1718973408765,-150.0,0.00044054,30]
[330058418,1718973408789,-150.0,0.00044063,30]
[330058419,1718973408814,-150.0,0.00044078,30]
[330058420,1718973408838,-323.17599016,0.00044095,30]
[330058421,1718973408862,-176.06219812,0.00044095,30]
[330058422,1718973408886,-229.83105618,0.00044095,30]
[330058423,1718973408910,-607.1,0.00044109,120]
[330058424,1718973408935,-784.29,0.00044109,120]
[330058425,1718973408958,-8535.5,0.00044109,120]
[330058426,1718973408982,-597.52822839,0.00044109,120]
[330058427,1718973409004,-150.0,0.00044113,30]
[330058428,1718973409028,-150.0,0.00044113,30]
[330058429,1718973409051,-150.0,0.00044137,30]
[330058430,1718973409075,-1000.0,0.0004414,30]
[330058431,1718973409099,-323.17599016,0.00044141,30]
[330058432,1718973409124,-176.06219812,0.00044141,30]
[330058433,1718973409148,-229.83105618,0.00044141,30]
[330058434,1718973409172,-150.0,0.0004416,30]
[330058435,1718973409197,-150.0,0.00044184,30]
[330058436,1718973409221,-323.17599016,0.00044188,30]
[330058437,1718973409245,-176.06219812,0.00044188,30]
[330058438,1718973409467,-229.83105618,0.00044188,30]
[330058439,1718973409497,-150.0,0.00044195,30]
[330058440,1718973409521,-849.38448179,0.000442,120]
[330058441,1718973409545,-849.38448177,0.000442,120]
[330058442,1718973409570,-849.38448177,0.000442,120]
[330058443,1718973409593,-849.38448177,0.000442,120]
[330058444,1718973409617,-849.38448177,0.000442,120]
[330058445,1718973409639,-150.0,0.00044231,30]
[330058446,1718973409662,-150.0,0.00044231,30]
[330058447,1718973409687,-150.0,0.00044231,30]
[330058448,1718973409710,-323.17599016,0.00044234,30]
[330058449,1718973409734,-176.06219812,0.00044234,30]
[330058450,1718973409757,-229.83105618,0.00044234,30]
[330058451,1718973409780,-150.0,0.00044253,30]
[330058452,1718973409802,-323.17599016,0.00044281,30]
[330058453,1718973409826,-176.06219812,0.00044281,30]
[330058454,1718973409849,-229.83105618,0.00044281,30]
[330058455,1718973409872,-150.0,0.00044305,30]
[330058456,1718973409895,-150.0,0.00044311,30]
[330058457,1718973409919,-323.17599016,0.00044327,30]
[330058458,1718973409944,-176.06219812,0.00044327,30]
[330058459,1718973409968,-229.83105618,0.00044327,30]
[330058460,1718973409994,-1000.0,0.00044343,30]
[330058461,1718973410019,-152.0,0.00044347,31]
[330058462,1718973410043,-150.0,0.00044349,30]
[330058463,1718973410067,-150.0,0.00044349,30]
[330058464,1718973410089,-150.0,0.0004437,30]
[330058465,1718973410113,-323.17599016,0.00044374,30]
[330058466,1718973410141,-176.06219812,0.00044374,30]
[330058467,1718973410165,-229.83105618,0.00044374,30]
[330058468,1718973410189,-607.1,0.00044383,120]
[330058469,1718973410216,-784.29,0.00044383,120]
[330058470,1718973410239,-8535.5,0.00044383,120]
[330058471,1718973410263,-150.0,0.0004439,120]
[330058472,1718973410288,-150.0,0.00044408,30]
[330058473,1718973410314,-323.17599016,0.0004442,30]
[330058474,1718973410338,-176.06219812,0.0004442,30]
[330058475,1718973410362,-229.83105618,0.0004442,30]
[330058476,1718973410386,-150.0,0.00044426,30]
[330058477,1718973410410,-150.0,0.00044428,30]
[330058478,1718973410436,-323.17599016,0.00044467,30]
[330058479,1718973410459,-176.06219812,0.00044467,30]
[330058480,1718973410485,-150.0,0.00044467,30]
[330058481,1718973410511,-229.83105618,0.00044467,30]
[330058482,1718973410534,-150.0,0.00044467,30]
[330058483,1718973410558,-150.0,0.00044467,30]
[330058484,1718973410582,-150.0,0.00044486,30]
[330058485,1718973410606,-500000.0,0.000445,50]
[330058486,1718973410631,-323.17599016,0.00044513,30]
[330058487,1718973410655,-176.06219812,0.00044513,30]
[330058488,1718973410680,-229.83105618,0.00044513,30]
[330058489,1718973410703,-150.0,0.00044532,120]
[330058490,1718973410726,-150.0,0.00044544,30]
[330058491,1718973410750,-1000.0,0.00044546,30]
[330058492,1718973410773,-150.0,0.00044547,30]
[330058493,1718973410797,-323.17599016,0.0004456,30]
[330058494,1718973410820,-176.06219812,0.0004456,30]
[330058495,1718973410844,-229.83105618,0.0004456,30]
[330058496,1718973410867,-150.0,0.00044585,30]
[330058497,1718973410891,-150.0,0.00044585,30]
[330058498,1718973410914,-150.0,0.00044585,30]
[330058499,1718973410939,-150.0,0.00044603,30]
[330058500,1718973410962,-323.17599016,0.00044606,30]
[330058501,1718973410984,-176.06219812,0.00044606,30]
[330058502,1718973411009,-229.83105618,0.00044606,30]
[330058503,1718973411033,-323.17599016,0.00044653,30]
[330058504,1718973411056,-176.06219812,0.00044653,30]
[330058505,1718973411079,-229.83105618,0.00044653,30]
[330058506,1718973411102,-487.14323713,0.00044657,30]
[330058507,1718973411126,-1038.0,0.00044657,30]
[330058508,1718973411150,-1038.0,0.00044657,30]
[330058509,1718973411173,-607.1,0.00044657,120]
[330058510,1718973411198,-784.29,0.00044657,120]
[330058511,1718973411221,-8535.5,0.00044657,120]
[330058512,1718973411247,-150.0,0.00044661,30]
[330058513,1718973411273,-150.0,0.00044668,30]
[330058514,1718973411297,-150.0,0.00044686,30]
[330058515,1718973411321,-323.17599016,0.00044699,30]
[330058516,1718973411345,-176.06219812,0.00044699,30]
[330058517,1718973411369,-229.83105618,0.00044699,30]
[330058518,1718973411392,-150.0,0.00044703,30]
[330058519,1718973411416,-150.0,0.00044703,30]
[330058520,1718973411439,-150.0,0.00044719,30]
[330058521,1718973411465,-323.17599016,0.00044745,30]
[330058522,1718973411491,-176.06219812,0.00044745,30]
[330058523,1718973411518,-229.83105618,0.00044745,30]
[330058524,1718973411542,-1000.0,0.00044749,30]
[330058525,1718973411568,-150.0,0.00044762,30]
[330058526,1718973411592,-150.0,0.00044777,30]
[330058527,1718973411615,-150.0,0.00044789,30]
[330058528,1718973411641,-323.17599016,0.00044792,30]
[330058529,1718973411664,-176.06219812,0.00044792,30]
[330058530,1718973411689,-229.83105618,0.00044792,30]
[330058531,1718973411712,-151.0,0.00044795,120]
[330058532,1718973411735,-150.0,0.00044821,30]
[330058533,1718973411759,-150.0,0.00044821,30]
[330058534,1718973411784,-150.0,0.00044835,30]
[330058535,1718973411809,-323.17599016,0.00044838,30]
[330058536,1718973411833,-176.06219812,0.00044838,30]
[330058537,1718973411858,-229.83105618,0.00044838,30]
[330058538,1718973411883,-150.0,0.0004485,30]
[330058539,1718973411908,-150.0,0.0004485,30]
[330058540,1718973411935,-600.0,0.00044874,60]
[330058541,1718973411960,-323.17599016,0.00044885,30]
[330058542,1718973412186,-176.06219812,0.00044885,30]
[330058543,1718973412211,-229.83105618,0.00044885,30]
[330058544,1718973412236,-150.0,0.00044894,30]
[330058545,1718973412261,-15980.4988398,0.000449,120]
[330058546,1718973412285,-150.0,0.00044911,30]
[330058547,1718973412310,-607.1,0.00044931,120]
[330058548,1718973412336,-784.29,0.00044931,120]
[330058549,1718973412360,-8535.5,0.00044931,120]
[330058550,1718973412384,-323.17599016,0.00044931,30]
[330058551,1718973412409,-176.06219812,0.00044931,30]
[330058552,1718973412435,-229.83105618,0.00044931,30]
[330058553,1718973412458,-150.0,0.00044938,30]
[330058554,1718973412485,-150.0,0.00044938,30]
[330058555,1718973412508,-150.0,0.00044938,30]
[330058556,1718973412532,-1000.0,0.00044952,30]
[330058557,1718973412557,-150.0,0.00044952,30]
[330058558,1718973412581,-323.17599016,0.00044978,30]
[330058559,1718973412605,-176.06219812,0.00044978,30]
[330058560,1718973412627,-229.83105618,0.00044978,30]
[330058561,1718973412650,-1000.0,0.00044999,120]
[330058562,1718973412681,-50000.0,0.00045,35]
[330058563,1718973412705,-155.0,0.00045,30]
[330058564,1718973412727,-150.0,0.00045,85]
[330058565,1718973412751,-2725.50111814,0.00045,120]
[330058566,1718973412775,-754.999989,0.00045,120]
[330058567,1718973412798,-221.37288848,0.00045,30]
[330058568,1718973412820,-2950.13562198,0.00045,30]
[330058569,1718973412843,-2038.73406398,0.00045,30]
[330058570,1718973412865,-1136.23689664,0.00045,120]
[330058571,1718973412889,-2298.41740715,0.00045,120]
[330058572,1718973412912,-2000.0,0.00045,30]
[330058573,1718973412936,-433.28561081,0.00045,60]
[330058574,1718973412958,-25101.10361006,0.00045,30]
[330058575,1718973412981,-360333.50381279,0.00045,60]
[330058576,1718973418877,288.66200467,0.000125,2]
[330058577,1718973422401,9083.91097445,0.00012,30]
[330058578,1718973422423,16374.57127231,0.00012,30]
[330058579,1718973431373,-228.26778782,0.00041644,40]
[330058580,1718973431398,-526.65327467,0.00041644,40]
[330058581,1718973431424,-268.40744715,0.00041644,40]
[330058582,1718973431459,-466.96303346,0.00041644,40]
[330058583,1718973431486,-868.95753671,0.00041644,40]
[330058584,1718973431511,-646.87246548,0.00042,120]
[330058585,1718973431539,-139666.49618721,0.00045,60]
[330058586,1718973431566,-795.68246982,0.00045,120]
[330058587,1718973431589,-200.0,0.00045,120]
[330058588,1718973431612,-2469.0,0.00045,120]
[330058589,1718973431634,-469.0,0.00045,120]
[330058590,1718973431659,-12875.90886091,0.00045,120]
[330058591,1718973431682,-70319.36067335,0.00045,60]
[330058592,1718973431715,-150.0,0.0004507,120]
[330058593,1718973431739,-607.1,0.00045205,120]
[330058594,1718973431766,-784.29,0.00045205,120]
[330058595,1718973431790,-8535.5,0.00045205,120]
[330058596,1718973431816,-607.1,0.00045479,120]
[330058597,1718973431841,-784.29,0.00045479,120]
[330058598,1718973431864,-8535.5,0.00045479,120]
[330058599,1718973431889,-151.0,0.00045479,120]
[330058600,1718973431914,-500000.0,0.000455,60]
[330058601,1718973431940,-7554.07553258,0.00045533,120]
[330058602,1718973431972,-228.95,0.000456,120]
[330058603,1718973431998,-151.0,0.00045616,120]
[330058604,1718973432024,-150.0,0.00045663,120]
[330058605,1718973432050,-607.1,0.00045753,120]
[330058606,1718973432077,-784.29,0.00045753,120]
[330058607,1718973432104,-8535.5,0.00045753,120]
[330058608,1718973432130,-17640.83581857,0.00045855,120]
[330058609,1718973432155,-6524.07813225,0.00045855,120]
[330058610,1718973432181,-554.58030205,0.00045856,120]
[330058611,1718973432213,-33046.18096065,0.00045857,120]
[330058612,1718973432237,-39039.82201646,0.00045857,120]
[330058613,1718973432263,-554.58030205,0.00045857,120]
[330058614,1718973432286,-167.88265226,0.00045858,120]
[330058615,1718973432312,-554.58030205,0.00045859,120]
[330058616,1718973432338,-191154.35351215,0.0004586,120]
[330058617,1718973432364,-17640.83581857,0.0004586,120]
[330058618,1718973432388,-167.88265226,0.00045861,120]
[330058619,1718973432413,-3456.19541056,0.00045861,120]
[330058620,1718973432438,-6524.07813225,0.00045861,120]
[330058621,1718973432468,-370.04752261,0.00045862,120]
[330058622,1718973432496,-167.88265226,0.00045862,120]
[330058623,1718973432522,-370.04752261,0.00045863,120]
[330058624,1718973432546,-6524.07813225,0.00045863,120]
[330058625,1718973432573,-3456.19541056,0.00045864,120]
[330058626,1718973432598,-267.02403211,0.00045865,120]
[330058627,1718973432623,-267.02403211,0.00045865,120]
[330058628,1718973432648,-3456.19541056,0.00045865,120]
[330058629,1718973432671,-3456.19541056,0.00045865,120]
[330058630,1718973432700,-39039.82201646,0.00045866,120]
[330058631,1718973432725,-33046.18096065,0.00045866,120]
[330058632,1718973432759,-39039.82201646,0.00045866,120]
[330058633,1718973432784,-33046.18096065,0.00045866,120]
[330058634,1718973432813,-39039.82201646,0.00045867,120]
[330058635,1718973432837,-167.88265226,0.00045868,120]
[330058636,1718973432864,-370.04752261,0.00045868,120]
[330058637,1718973432890,-216.04084445,0.00045869,120]
[330058638,1718973432914,-3456.19541056,0.00045869,120]
[330058639,1718973432941,-216.04084445,0.00045869,120]
[330058640,1718973432970,-3456.19541056,0.00045869,120]
[330058641,1718973433008,-554.58030205,0.00045869,120]
[330058642,1718973433348,-39039.82201646,0.00045871,120]
[330058643,1718973433373,-267.02403211,0.00045871,120]
[330058644,1718973433398,-39039.82201646,0.00045871,120]
[330058645,1718973433424,-370.04752261,0.00045871,120]
[330058646,1718973433449,-3456.19541056,0.00045872,120]
[330058647,1718973433478,-216.04084445,0.00045872,120]
[330058648,1718973433503,-216.04084445,0.00045873,120]
[330058649,1718973433528,-167.88265226,0.00045873,120]
[330058650,1718973433553,-6524.07813225,0.00045873,120]
[330058651,1718973433577,-370.04752261,0.00045874,120]
[330058652,1718973433604,-554.58030205,0.00045874,120]
[330058653,1718973433627,-167.88265226,0.00045875,120]
[330058654,1718973433652,-216.04084445,0.00045875,120]
[330058655,1718973433678,-216.04084445,0.00045875,120]
[330058656,1718973433706,-17640.83581857,0.00045876,120]
[330058657,1718973433731,-267.02403211,0.00045876,120]
[330058658,1718973433755,-33046.18096065,0.00045876,120]
[330058659,1718973433779,-6524.07813225,0.00045876,120]
[330058660,1718973433805,-370.04752261,0.00045876,120]
[330058661,1718973433831,-17640.83581857,0.00045877,120]
[330058662,1718973433856,-6524.07813225,0.00045878,120]
[330058663,1718973433880,-17640.83581857,0.00045878,120]
[330058664,1718973433906,-216.04084445,0.00045878,120]
[330058665,1718973433931,-370.04752261,0.00045879,120]
[330058666,1718973433960,-33046.18096065,0.0004588,120]
[330058667,1718973433986,-267.02403211,0.0004588,120]
[330058668,1718973434012,-39039.82201646,0.0004588,120]
[330058669,1718973434052,-6524.07813225,0.00045882,120]
[330058670,1718973434080,-6524.07813225,0.00045883,120]
[330058671,1718973434106,-33046.18096065,0.00045884,120]
[330058672,1718973434135,-191154.35351215,0.00045885,120]
[330058673,1718973434163,-554.58030205,0.00045885,120]
[330058674,1718973434191,-191154.35351215,0.00045885,120]
[330058675,1718973434220,-191154.35351215,0.00045885,120]
[330058676,1718973434245,-167.88265226,0.00045885,120]
[330058677,1718973434273,-3456.19541056,0.00045886,120]
[330058678,1718973434299,-191154.35351215,0.00045886,120]
[330058679,1718973434326,-191154.35351215,0.00045886,120]
[330058680,1718973434352,-267.02403211,0.00045886,120]
[330058681,1718973434380,-554.58030205,0.00045886,120]
[330058682,1718973434407,-33046.18096065,0.00045886,120]
[330058683,1718973434433,-17640.83581857,0.00045887,120]
[330058684,1718973434460,-33046.18096065,0.00045887,120]
[330058685,1718973434486,-6524.07813225,0.00045887,120]
[330058686,1718973434516,-267.02403211,0.00045889,120]
[330058687,1718973434543,-267.02403211,0.00045889,120]
[330058688,1718973434567,-3456.19541056,0.00045891,120]
[330058689,1718973434594,-191154.35351215,0.00045892,120]
[330058690,1718973434619,-167.88265226,0.00045892,120]
[330058691,1718973434644,-17640.83581857,0.00045893,120]
[330058692,1718973434669,-267.02403211,0.00045894,120]
[330058693,1718973434696,-370.04752261,0.00045895,120]
[330058694,1718973434721,-130894.74001664,0.00045895,120]
[330058695,1718973437643,-150.0,0.00012979,2]
[330058696,1718973437665,-55122.66765501,0.0001298,2]
[330058697,1718973437686,-1691.24578734,0.00013,2]
[330058698,1718973437708,-151.39412324,0.00013899,2]
[330058699,1718973437730,-153.53,0.0001399,3]
[330058700,1718973437752,-3198878.56393441,0.00014,2]
[330058701,1718973438678,-303.28221703,0.0004,120]
[330058702,1718973438702,-1723.94907369,0.0004,120]
[330058703,1718973438726,-639.97,0.0004,120]
[330058704,1718973438748,-1379.29753234,0.0004,60]
[330058705,1718973438773,-150.67554068,0.000409,120]
[330058706,1718973438808,-60259.61349551,0.00045895,120]
[330058707,1718973438834,-370.04752261,0.00045896,120]
[330058708,1718973438856,-17640.83581857,0.00045897,120]
[330058709,1718973438880,-33046.18096065,0.00045897,120]
[330058710,1718973438904,-216.04084445,0.00045898,120]
[330058711,1718973438930,-554.58030205,0.00045898,120]
[330058712,1718973438955,-39039.82201646,0.00045898,120]
[330058713,1718973438981,-39039.82201646,0.00045898,120]
[330058714,1718973439005,-167.88265226,0.00045899,120]
[330058715,1718973439297,-216.04084445,0.00045899,120]
[330058716,1718973439325,-17640.83581857,0.00045899,120]
[330058717,1718973439351,-554.58030205,0.000459,120]
[330058718,1718973439377,-191154.35351215,0.000459,120]
[330058719,1718973439402,-407.0,0.00045986,120]
[330058720,1718973439425,-6271.61415311,0.00045999,120]
[330058721,1718973439449,-1000.0,0.00045999,120]
[330058722,1718973439473,-167.4,0.00046,96]
[330058723,1718973439502,-1000.0,0.00046,120]
[330058724,1718973439528,-739.70375246,0.00046,120]
[330058725,1718973439552,-8640.48166614,0.00046,90]
[330058726,1718973439576,-500000.0,0.00046,60]
[330058727,1718973439599,-2935.10345928,0.00046,120]
[330058728,1718973439622,-1324.80258201,0.00046,100]
[330058729,1718973439646,-607.1,0.00046027,120]
[330058730,1718973439670,-784.29,0.00046027,120]
[330058731,1718973439695,-8535.5,0.00046027,120]
[330058732,1718973439720,-151.0,0.00046164,120]
[330058733,1718973439743,-607.1,0.00046301,120]
[330058734,1718973439768,-784.29,0.00046301,120]
[330058735,1718973439791,-8535.5,0.00046301,120]
[330058736,1718973439816,-150.0,0.00046407,120]
[330058737,1718973439839,-804.79578127,0.000465,120]
[330058738,1718973439863,-500000.0,0.000465,65]
[330058739,1718973439888,-22008.719,0.000465,120]
[330058740,1718973439912,-22008.72,0.000465,120]
[330058741,1718973439937,-31854.312,0.000465,120]
[330058742,1718973439970,-22008.719,0.000465,120]
[330058743,1718973439995,-272.58311591,0.000465,120]
[330058744,1718973440022,-31854.312,0.000465,120]
[330058745,1718973440046,-22008.719,0.000465,120]
[330058746,1718973440068,-31854.313,0.000465,120]
[330058747,1718973440092,-22008.72,0.000465,120]
[330058748,1718973440116,-31854.312,0.000465,120]
[330058749,1718973440139,-31854.313,0.000465,120]
[330058750,1718973440163,-607.1,0.00046575,120]
[330058751,1718973440190,-784.29,0.00046575,120]
[330058752,1718973440219,-8535.5,0.00046575,120]
[330058753,1718973440244,-150.0,0.00046597,120]
[330058754,1718973440268,-151.0,0.0004674,120]
[330058755,1718973440293,-150.0,0.0004675,120]
[330058756,1718973440319,-150.0,0.00046804,120]
[330058757,1718973440346,-150.0,0.00046814,120]
[330058758,1718973440370,-607.1,0.00046849,120]
[330058759,1718973440395,-784.29,0.00046849,120]
[330058760,1718973440418,-8535.5,0.00046849,120]
[330058761,1718973440441,-151.0,0.00046849,120]
[330058762,1718973440476,-150.0,0.00046861,120]
[330058763,1718973440506,-150.0,0.00046967,120]
[330058764,1718973440530,-1000.0,0.00046999,120]
[330058765,1718973440553,-2400.81706379,0.00047,120]
[330058766,1718973440581,-500000.0,0.00047,65]
[330058767,1718973440604,-607.1,0.00047123,120]
[330058768,1718973440629,-784.29,0.00047123,120]
[330058769,1718973440653,-8535.5,0.00047123,120]
[330058770,1718973440677,-6854.4,0.00047202,117]
[330058771,1718973440702,-150.0,0.00047204,120]
[330058772,1718973440726,-607.128794,0.00047397,120]
[330058773,1718973440751,-784.29,0.00047397,120]
[330058774,1718973440775,-8535.5,0.00047397,120]
[330058775,1718973440799,-150.0,0.00047457,120]
[330058776,1718973440823,-273.48689146,0.0004748,120]
[330058777,1718973440847,-150.0,0.00047516,120]
[330058778,1718973440870,-850.65463262,0.0004752,120]
[330058779,1718973440895,-151.0,0.00047534,120]
[330058780,1718973440921,-784.29,0.00047671,120]
[330058781,1718973440948,-8535.5,0.00047671,120]
[330058782,1718973440974,-150.0,0.00047675,120]
[330058783,1718973440998,-150.0,0.00047733,120]
[330058784,1718973441022,-50270.61106734,0.000478,120]
[330058785,1718973441046,-151.0,0.00047863,120]
[330058786,1718973441070,-784.29,0.00047945,120]
[330058787,1718973441094,-8535.5,0.00047945,120]
[330058788,1718973441117,-2323.13967368,0.0004798,120]
[330058789,1718973441142,-1000.0,0.00047999,120]
[330058790,1718973441169,-21890.27992424,0.00048,120]
[330058791,1718973441195,-291.35692351,0.00048,120]
[330058792,1718973441221,-550.0,0.00048,120]
[330058793,1718973441245,-830.85010183,0.00048,120]
[330058794,1718973441270,-1000.0,0.00048,120]
[330058795,1718973441294,-2787.71761054,0.00048,120]
[330058796,1718973441317,-9930.0,0.00048,60]
[330058797,1718973441342,-9930.0,0.00048,60]
[330058798,1718973441366,-160.0,0.00048,120]
[330058799,1718973441391,-32000.0,0.00048,120]
[330058800,1718973441418,-150.0,0.00048201,120]
[330058801,1718973441442,-784.29,0.00048219,120]
[330058802,1718973441468,-8535.5,0.00048219,120]
[330058803,1718973441496,-151.0,0.00048219,120]
[330058804,1718973441523,-150.0,0.00048284,120]
[330058805,1718973441546,-784.29,0.00048493,120]
[330058806,1718973441573,-8535.5,0.00048493,120]
[330058807,1718973441597,-5000.0,0.000485,120]
[330058808,1718973441623,-268.39500591,0.000487,120]
[330058809,1718973441649,-784.29,0.00048767,120]
[330058810,1718973441675,-8535.5,0.00048767,120]
[330058811,1718973441699,-1463.68814333,0.00048775,120]